Cogmind - Beta 14 @@@ ROGUE MODE // 2024.08.28 @ 19:04:46 Player: Daffa0360 Result: Destroyed by 3D-PT4(x) with Heavy Laser Performance ------------- Evolutions (3) 1500 Regions Visited (9) 1800 Robots Destroyed (55) 275 Value Destroyed (2209) 2209 Prototype IDs (36) 720 Alien Tech Used (0) 0 Bonus (1726) 1726 TOTAL SCORE: 8230 Bonus ------- High Alert Combat Kills 120 Follower Combat Kills 200 Entered Garrisons 200 Used RIF Installer 1000 Aligned with FarCom 300 Friendly Fire -94 Cogmind --------- Core Integrity 0/700 Matter 268/300 Energy 290/290 System Corruption 2% Temperature Cool (9) Movement Walking (200) Ox1 Location -7/Lower Caves Parts ------- > --- POWER (1) -------- Improved Deuterium Engine > --- PROPULSION (3) --- Light Treads Improved Titanium Leg Gravmag System > --- UTILITY (7) ------ Visual Processing Unit Improved Sensor Array Improved Melee Analysis Suite Target Analyzer Transmission Jammer System Shield Recalibrator > --- WEAPON (2) ------- Railgun Gauss Cannon > --- INVENTORY (5) ---- Hacking Suite Relay Coupler [Specialist] (26) Quantum Rifle Remote Datajack Spear Peak State ------------ > --- POWER ------------ Improved Deuterium Engine > --- PROPULSION ------- Aluminum Leg Flexi-carbon Leg Cesium-ion Thruster > --- UTILITY ---------- Advanced Heat Sink Advanced Weight Redist. System Visual Processing Unit Improved Sensor Array Improved Melee Analysis Suite Target Analyzer Weapon Cycler > --- WEAPON ----------- Quantum Rifle Railgun > --- INVENTORY -------- Compact Matter Pod Transmission Jammer Hacking Suite Improved Datajack Spear [Rating: 53] Favorites ----------- Power Improved Ion Engine Engine Improved Ion Engine Power Core Micro Nuclear Core Propulsion Aluminum Leg Treads Light Treads Leg Aluminum Leg Wheel Armored Wheel Hover Unit Gravmag System Flight Unit Xenon Bombardment Thruster Utility Sensor Array Device Sensor Array Storage Small Storage Unit Processor Improved Melee Analysis Suite Hackware System Shield Protection Hardened Medium Armor Plating Weapon Enhanced Autogun Energy Gun Medium Laser Ballistic Gun Enhanced Autogun Ballistic Cannon Gauss Cannon Launcher Concussive RPG Slashing Weapon Longsword +1 Piercing Weapon Spear Special Melee Weapon Improved Datajack Build | -11 -10 -10 -10 -9 -8 -7 -7 -7 -7 ------- Run | Yrd Mat Min Exi Min Mat Fac Gar Fac Low Slots Evolved 6 | . . . . . 4 2 . . . Power . | . . . . . . . . . . Propulsion 1 | . . . . . . 1 . . . Utility 5 | . . . . . 4 1 . . . Weapon . | . . . . . . . . . . Parts Attached 83 | 1 2 1 . . 28 17 28 6 . Power 12 | . . 1 . . 2 5 4 . . Engine 11 | . . 1 . . 2 4 4 . . Core 1 | . . . . . . 1 . . . Reactor . | . . . . . . . . . . Propulsion 17 | . 1 . . . 6 1 7 2 . Treads 1 | . . . . . . . 1 . . Leg 8 | . 1 . . . 2 . 4 1 . Wheel 2 | . . . . . 2 . . . . Hover 2 | . . . . . . . 1 1 . Flight 4 | . . . . . 2 1 1 . . Utility 33 | . 1 . . . 14 8 7 3 . Device 22 | . 1 . . . 11 4 5 1 . Storage . | . . . . . . . . . . Processor 6 | . . . . . 1 4 . 1 . Hackware 4 | . . . . . 1 . 2 1 . Protection 1 | . . . . . 1 . . . . Artifact . | . . . . . . . . . . Weapon 21 | 1 . . . . 6 3 10 1 . Energy Gun 4 | . . . . . 2 1 1 . . Energy Cannon . | . . . . . . . . . . Ballistic Gun 8 | 1 . . . . 3 . 4 . . Ballistic Cannon 1 | . . . . . . . . 1 . Launcher 1 | . . . . . . . 1 . . Special Weapon . | . . . . . . . . . . Impact Weapon . | . . . . . . . . . . Slashing Weapon 1 | . . . . . 1 . . . . Piercing Weapon 3 | . . . . . . 1 2 . . Special Melee Weapon 3 | . . . . . . 1 2 . . Unidentified Prototypes 5 | . . . . . 3 2 . . . Parts Lost 14 | . . . . . 2 . 12 . . Power 2 | . . . . . . . 2 . . Propulsion 6 | . . . . . . . 6 . . Utility 6 | . . . . . 2 . 4 . . Weapon . | . . . . . . . . . . Highest Loss Streak 2 | . . . . . 1 . 2 . . To Critical Strikes . | . . . . . . . . . . Average Slot Usage (%) 94 | . 94 100 100 100 98 95 89 78 . Engine 8 | . 14 14 14 14 8 5 6 7 . Leg 10 | . 28 28 28 28 6 . 10 . . Flight 7 | . . . . . 9 18 7 . . Device 25 | . 8 14 14 14 34 28 24 19 . Storage 4 | . 14 14 14 14 4 . . . . Processor 12 | . . . . . 6 24 23 23 . Hackware 2 | . . . . . 4 . . 3 . Energy Gun 4 | . 14 14 14 14 1 2 2 . . Ballistic Gun 8 | . 14 14 14 14 11 1 2 7 . Slashing Weapon 2 | . . . . . 4 7 1 . . Piercing Weapon 1 | . . . . . . . 4 . . Peak Build Rating 53 | 6 8 8 8 8 39 52 53 49 49 Average Rating 32 | 6 7 8 8 8 32 46 44 38 49 On Entrance 21 | 6 6 8 8 8 8 36 52 30 49 Naked Turns . | . . . . . . . . . . Heaviest Build 35 | 12 13 15 15 15 35 22 25 26 . Greatest Support 39 | 20 20 20 20 20 27 26 39 20 . Greatest Overweight (x) 6 | . . . . . 3 1 6 2 . Average Overweight (x) . | . . . . . 1 . . 1 . Largest Inventory Capacity 8 | 8 8 8 8 8 8 5 5 5 5 Average Capacity 6 | 8 8 8 8 8 6 5 5 5 5 Most Carried 8 | 8 8 8 8 8 8 5 5 5 5 Average Carried 5 | 7 7 7 7 8 6 4 4 5 5 Final Capacity 8 | 8 8 8 8 8 5 5 5 5 5 Final Carried 8 | 8 7 7 8 8 5 5 5 5 5 Class Distribution -------------------- 25% | Skirmisher 23% | Assassin 18% | Mutant 11% | Scavenger-Assassin 8% | Ninja 7% | Scavenger-Skirmisher Dominant Class ---------------- Mutant | -10/Materials Mutant | -10/Mines Mutant | -10/Exiles Skirmisher | -9/Mines Assassin | -8/Materials Assassin | -7/Factory Scavenger-Assassin | -7/Garrison Skirmisher | -7/Factory Skirmisher | -7/Lower Caves Resources | -11 -10 -10 -10 -9 -8 -7 -7 -7 -7 ----------- Run | Yrd Mat Min Exi Min Mat Fac Gar Fac Low Matter Collected 1846 | 261 27 74 . 10 578 65 784 47 . Remotely . | . . . . . . . . . . Salvage Created 2012 | 185 166 37 . . 672 65 887 . . Parts 124 | 16 13 2 . . 47 7 39 . . Haulers Intercepted 3 | . . . . . 3 . . . . Recyclers Shooed . | . . . . . . . . . . Parts Field Recycled . | . . . . . . . . . . Retrieved Matter . | . . . . . . . . . . Parts Self-Destructed . | . . . . . . . . . . Prevented . | . . . . . . . . . . Kills | -11 -10 -10 -10 -9 -8 -7 -7 -7 -7 ------- Run | Yrd Mat Min Exi Min Mat Fac Gar Fac Low Combat Hostiles Destroyed 39 | . 5 3 . . 11 1 19 . . Melee 17 | . . . . . 3 1 13 . . Guns 22 | . 5 3 . . 8 . 6 . . Classes Destroyed 15 | 2 3 . . . 6 1 3 . . Worker 2 | . . . . . 2 . . . . Builder 2 | . . . . . 2 . . . . Tunneler 5 | 5 . . . . . . . . . Hauler 3 | . . . . . 3 . . . . Recycler 1 | 1 . . . . . . . . . Operator 1 | . . . . . 1 . . . . Watcher 2 | . 1 . . . . 1 . . . Swarmer 11 | . 3 3 . . 3 . 2 . . Cutter 3 | . . . . . . . 3 . . Grunt 12 | . 2 . . . 3 . 7 . . Duelist 2 | . . . . . . . 2 . . Sentry 6 | . . . . . 4 . 2 . . Specialist 2 | . . . . . . . 2 . . Hunter 1 | . . . . . 1 . . . . Programmer 2 | . . . . . . 1 1 . . Best Kill Streak 4 | 3 3 3 . . 3 1 4 . . Combat Bots Only 4 | . 3 3 . . 3 1 4 . . Max Kills in Single Turn 2 | 1 1 2 . . 2 1 1 . . Gunslinging 1 | . . 1 . . . . . . . Exploded . | . . . . . . . . . . Melee 1 | . . . . . 1 1 1 . . Uniques/NPCs Destroyed . | . . . . . . . . . . Combat | -11 -10 -10 -10 -9 -8 -7 -7 -7 -7 -------- Run | Yrd Mat Min Exi Min Mat Fac Gar Fac Low Hostile Shots Fired 306 | . 29 7 . . 60 4 204 . 2 Missed 98 | . 9 3 . . 15 2 69 . . Damage Taken 2920 | . 199 35 . . 752 31 1846 . 57 Core 818 | . 23 6 . . 85 . 686 . 18 Absorbed by Shields 61 | . . . . . . . 61 . . Core Remaining (%) 90 | 100 . . . 88 84 . . . . Volleys Fired 155 | 17 24 3 . . 51 . 59 . 1 Largest 2 | 2 2 2 . . 2 . 2 . 1 Hottest 129 | 70 70 70 . . 81 . 129 . 48 Shots Fired 250 | 34 48 6 . . 94 . 67 . 1 Gun 248 | 34 48 6 . . 94 . 66 . . Cannon 1 | . . . . . . . . . 1 Launcher 1 | . . . . . . . 1 . . Special . | . . . . . . . . . . Kinetic 179 | 17 24 3 . . 80 . 54 . 1 Thermal 65 | 17 24 3 . . 9 . 12 . . Explosive 1 | . . . . . . . 1 . . Electromagnetic 5 | . . . . . 5 . . . . Robot Hit Streak 15 | 6 11 2 . . 15 . 6 . . Robot Miss Streak 5 | 3 3 2 . . 5 . 4 . 1 Penetration Max 1 | . . . . . . . 1 . . Secondary Targets 2 | . . 1 . . . . 1 . . Max Gunslinging Chain 1 | . . 1 . . . . 1 . . Shots Hit Robots 193 | 17 30 4 . . 72 5 65 . . Core Hits 77 | 7 9 3 . . 27 2 29 . . Critical Kills 1 | . . . . . . . 1 . . Critical Parts Destroyed . | . . . . . . . . . . Critical Strikes 7 | 1 2 . . . . . 4 . . Burn 3 | 1 2 . . . . . . . . Destroy 1 | . . . . . . . 1 . . Sever 1 | . . . . . . . 1 . . Impale 2 | . . . . . . . 2 . . Melee Attacks 114 | . . . . . 31 13 70 . . Impact . | . . . . . . . . . . Slashing 72 | . . . . . 31 13 28 . . Piercing 39 | . . . . . . . 39 . . Sneak Attacks 2 | . . . . . 2 . . . . Combat Hostiles . | . . . . . . . . . . Follow-up Attacks 3 | . . . . . . . 3 . . Damage Inflicted 4809 | 235 372 52 . . 1818 247 2058 . 27 Guns 2322 | 235 372 52 . . 902 . 761 . . Cannons 27 | . . . . . . . . . 27 Explosions 348 | . . . . . 281 . 67 . . Melee 2112 | . . . . . 635 247 1230 . . Ramming . | . . . . . . . . . . Kinetic 1557 | 98 162 27 . . 763 . 480 . 27 Thermal 1000 | 137 210 25 . . 347 . 281 . . Explosive 67 | . . . . . . . 67 . . Electromagnetic 73 | . . . . . 73 . . . . Impact . | . . . . . . . . . . Slashing 1626 | . . . . . 635 247 744 . . Piercing 486 | . . . . . . . 486 . . Highest Corruption 2 | . . . . . . 1 2 2 2 Average Corruption 1 | . . . . . . 1 1 2 2 Corruption Purged . | . . . . . . . . . . Corruption Blocked . | . . . . . . . . . . Effects 27 | . . . . . . 3 18 6 . Message Errors 6 | . . . . . . 1 3 2 . Matter Fused 7 | . . . . . . 2 3 2 . Heat Flow Errors 6 | . . . . . . . 4 2 . Energy Discharges 3 | . . . . . . . 3 . . Data Loss (minor) 3 | . . . . . . . 3 . . Misfires 1 | . . . . . . . 1 . . Alerts 1 | . . . . . . . 1 . . Overload Shots . | . . . . . . . . . . Overflow Damage 280 | . . . . . 243 15 22 . . Projectiles . | . . . . . . . . . . Explosions 205 | . . . . . 204 . 1 . . Melee 75 | . . . . . 39 15 21 . . Knockbacks . | . . . . . . . . . . Impact . | . . . . . . . . . . Kinetic . | . . . . . . . . . . Secondary . | . . . . . . . . . . Self-Inflicted Damage 145 | . . . . . 119 . 26 . . Shots 3 | . . . . . 2 . 1 . . Rammed . | . . . . . . . . . . Targets Rammed . | . . . . . . . . . . Kicked . | . . . . . . . . . . Crushed . | . . . . . . . . . . Highest Temperature 252 | 54 90 27 . . 140 . 252 225 . Average Temperature 43 | 18 39 14 . . 32 . 66 110 . Received Heat Transfer 581 | . 69 . . . 225 . 278 . 9 Siege Activations . | . . . . . . . . . . Robots Corrupted . | . . . . . . . . . . Combat Hostiles . | . . . . . . . . . . Parts Fried . | . . . . . . . . . . Impact Corruptions . | . . . . . . . . . . Robots Melted . | . . . . . . . . . . Combat Hostiles . | . . . . . . . . . . Parts Melted 4 | 1 2 . . . . . 1 . . Heat Transferred 2037 | 481 777 74 . . 335 . 370 . . Parts Sabotaged . | . . . . . . . . . . Parts Stolen . | . . . . . . . . . . Parts Stripped . | . . . . . . . . . . Power Chain Reactions 1 | . . . . . 1 . . . . Alert | -11 -10 -10 -10 -9 -8 -7 -7 -7 -7 ------- Run | Yrd Mat Min Exi Min Mat Fac Gar Fac Low Peak Influence 1411 | 30 202 70 . . 211 51 1411 797 . Initial 740 | . 19 . . . . 47 34 740 . Average 244 | 16 127 18 . . 59 34 634 731 . Maximum Alert Level 4 | . 1 . . . 1 . 4 3 . Low Security (%) 69 | 100 65 100 . 100 96 100 17 . . Level 1 7 | . 34 . . . 3 . 17 . . Level 2 5 | . . . . . . . 19 11 . Level 3 15 | . . . . . . . 38 88 . Level 4 1 | . . . . . . . 7 . . Level 5 . | . . . . . . . . . . High Security . | . . . . . . . . . . Max Security . | . . . . . . . . . . Squads Dispatched 6 | . . . . . 2 3 . 1 . Investigation 3 | . . . . . 1 2 . . . Extermination 2 | . . . . . . 1 . 1 . Reinforcement 1 | . . . . . 1 . . . . Assault . | . . . . . . . . . . Garrison . | . . . . . . . . . . Intercept . | . . . . . . . . . . Searches Triggered . | . . . . . . . . . . Construction Impeded . | . . . . . . . . . . Haulers Reinforced . | . . . . . . . . . . Active Scanning Responses . | . . . . . . . . . . Cargo Convoy Interrupts . | . . . . . . . . . . Stealth | -11 -10 -10 -10 -9 -8 -7 -7 -7 -7 --------- Run | Yrd Mat Min Exi Min Mat Fac Gar Fac Low Distress Signals 5 | . . . . . 5 . . . . Communications Jammed . | . . . . . . . . . . Distress Signals . | . . . . . . . . . . Times Spotted 90 | . 10 3 . . 30 4 37 3 3 Peak Tracking Total 8 | . 3 3 . . 8 2 4 2 3 Tactical Retreats 11 | . 1 . . . 2 . 8 . . Traps | -11 -10 -10 -10 -9 -8 -7 -7 -7 -7 ------- Run | Yrd Mat Min Exi Min Mat Fac Gar Fac Low Traps Triggered 8 | . . . . . 3 1 4 . . Indirectly . | . . . . . . . . . . Trap Hack Attempts . | . . . . . . . . . . Triggered . | . . . . . . . . . . Disarmed . | . . . . . . . . . . Reprogrammed . | . . . . . . . . . . Reused . | . . . . . . . . . . Traps Extracted . | . . . . . . . . . . Installed . | . . . . . . . . . . Triggered . | . . . . . . . . . . Machines | -11 -10 -10 -10 -9 -8 -7 -7 -7 -7 ---------- Run | Yrd Mat Min Exi Min Mat Fac Gar Fac Low Machines Disabled 8 | . . . . . 3 . 4 1 . Max in Single Turn 3 | . . . . . 3 . 1 . . Garrison Relay 3 | . . . . . . . 3 . . Machines Repaired . | . . . . . . . . . . Machines Dismantled . | . . . . . . . . . . Machines Sabotaged . | . . . . . . . . . . Overloaded Fab Kills . | . . . . . . . . . . Hacking | -11 -10 -10 -10 -9 -8 -7 -7 -7 -7 --------- Run | Yrd Mat Min Exi Min Mat Fac Gar Fac Low Machines Accessed 18 | . 2 . 1 . 7 6 2 . . Terminals 13 | . 2 . . . 5 4 2 . . Fabricators 1 | . . . . . . 1 . . . Repair Stations . | . . . . . . . . . . Recycling Units 1 | . . . . . 1 . . . . Scanalyzers 1 | . . . . . 1 . . . . Garrison Access 1 | . . . . . . 1 . . . Total Hacks 62 | . 7 . 1 . 35 16 3 . . Successful 35 | . 4 . 1 . 22 7 1 . . Failed 27 | . 3 . . . 13 9 2 . . Catastrophic 3 | . 1 . . . 1 1 . . . Database Lockouts . | . . . . . . . . . . Manual 19 | . 4 . 1 . 13 1 . . . Terminals 39 | . 7 . . . 17 12 3 . . Fabricators 3 | . . . . . . 3 . . . Repair Stations . | . . . . . . . . . . Recycling Units 4 | . . . . . 4 . . . . Scanalyzers 14 | . . . . . 14 . . . . Garrison Access 1 | . . . . . . 1 . . . Terminal Hacks 17 | . 2 . 1 . 7 6 1 . . Part Schematic 1 | . . . . . . 1 . . . Robot Analysis 1 | . . . . . 1 . . . . Prototype ID Bank 4 | . 1 . . . 2 1 . . . Branch Access Points 1 | . . . . . 1 . . . . Emergency Access Points 2 | . . . . . . 1 1 . . Alert Level 1 | . . . . . . 1 . . . Locate Traps 4 | . . . . . 2 2 . . . Registered Components 1 | . 1 . . . . . . . . Zone Layout 1 | . . . . . 1 . . . . Derelict Proto ID Bank 1 | . . . 1 . . . . . . Fabricator Hacks . | . . . . . . . . . . Repair Station Hacks . | . . . . . . . . . . Recycling Unit Hacks 1 | . . . . . 1 . . . . Report Inventory 1 | . . . . . 1 . . . . Scanalyzer 10 | . . . . . 10 . . . . Insert Component 5 | . . . . . 5 . . . . Analyze 5 | . . . . . 5 . . . . Garrison Access Hacks 1 | . . . . . . 1 . . . Unlock Access 1 | . . . . . . 1 . . . Unauthorized Hacks 6 | . 2 . . . 4 . . . . Terminals 3 | . 2 . . . 1 . . . . Botnet 2 | . 1 . . . 1 . . . . Operators 1 | . 1 . . . . . . . . Fabricators . | . . . . . . . . . . Repair Stations . | . . . . . . . . . . Recycling Units 2 | . . . . . 2 . . . . Recyclers 1 | . . . . . 1 . . . . Mask 1 | . . . . . 1 . . . . Scanalyzers 1 | . . . . . 1 . . . . Researchers 1 | . . . . . 1 . . . . Garrison Access . | . . . . . . . . . . Data Cores Recovered . | . . . . . . . . . . Used . | . . . . . . . . . . Hacking Detections 15 | . 2 . . . 6 5 2 . . Full Trace Events 1 | . . . . . . 1 . . . Feedback Events . | . . . . . . . . . . Feedback Blocked . | . . . . . . . . . . Robot Schematics Acquired . | . . . . . . . . . . Robots Built . | . . . . . . . . . . Authchips . | . . . . . . . . . . Time . | . . . . . . . . . . Total Robot Build Rating . | . . . . . . . . . . Part Schematics Acquired 6 | . . . . . 5 1 . . . Parts Built . | . . . . . . . . . . Authchips . | . . . . . . . . . . Time . | . . . . . . . . . . Total Part Build Rating . | . . . . . . . . . . Parts Repaired . | . . . . . . . . . . Time . | . . . . . . . . . . Parts Recycled . | . . . . . . . . . . Recycled Matter . | . . . . . . . . . . Retrieved Matter . | . . . . . . . . . . Retrieved Components . | . . . . . . . . . . Parts Scanalyzed 5 | . . . . . 5 . . . . Part Schematics Acquired 5 | . . . . . 5 . . . . Parts Damaged . | . . . . . . . . . . Bothacking | -11 -10 -10 -10 -9 -8 -7 -7 -7 -7 ------------ Run | Yrd Mat Min Exi Min Mat Fac Gar Fac Low Used RIF Installer 2 | . . . . . . . 2 . . Patrol Navigation 1 | . . . . . . . 1 . . Robots Hacked 3 | . . . . . . . 3 . . Non-combat . | . . . . . . . . . . Combat 3 | . . . . . . . 3 . . Robot Hacks Applied 3 | . . . . . . . 3 . . formatsys_high 3 | . . . . . . . 3 . . Relay Couplers Released 13 | . . . . . . . 13 . . Machine Destruction 13 | . . . . . . . 13 . . Attached 2 | . . . . . . . 2 . . Fabnet Peak Effective % . | . . . . . . . . . . Robots Rewired . | . . . . . . . . . . Allies Hacked . | . . . . . . . . . . Hacks Repelled . | . . . . . . . . . . Allies | -11 -10 -10 -10 -9 -8 -7 -7 -7 -7 -------- Run | Yrd Mat Min Exi Min Mat Fac Gar Fac Low Total Allies 6 | . . 1 . . . . 5 . . Largest Group 3 | . . 1 1 . . . 3 3 . Highest-Rated Group 207 | . . 31 31 . . . 207 204 . Highest-Rated Ally 95 | . . 31 31 . . . 95 95 . Total Orders 1 | . . . . . . . 1 . . STAY 1 | . . . . . . . 1 . . Ally Attacks 27 | . . . . . . . 19 6 2 Total Damage 755 | . . . . . . . 545 135 75 Kills 6 | . . . . . . . 5 1 . Allies Corrupted . | . . . . . . . . . . Allies Melted . | . . . . . . . . . . Intel | -11 -10 -10 -10 -9 -8 -7 -7 -7 -7 ------- Run | Yrd Mat Min Exi Min Mat Fac Gar Fac Low Robot Analysis Total 1 | . . . . . 1 . . . . Derelict Logs Recovered 2 | . . 1 . 1 . . . . . Drone Launches . | . . . . . . . . . . Drone Recoveries . | . . . . . . . . . . Exploration | -11 -10 -10 -10 -9 -8 -7 -7 -7 -7 ------------- Run | Yrd Mat Min Exi Min Mat Fac Gar Fac Low Turns Passed 8602 | 129 405 710 265 418 2930 1030 2261 453 1 Spaces Moved 5463 | 43 255 575 219 309 1342 893 1634 193 . Core 7 | . . . . . . . 7 . . Treads 192 | . . . . . . . 38 154 . Legs 2934 | 43 255 575 219 309 393 . 1118 22 . Wheels 282 | . . . . . 282 . . . . Hover 17 | . . . . . . . . 17 . Flight 2031 | . . . . . 667 893 471 . . Fastest Speed 32 | 120 120 120 120 120 105 32 32 160 . Average Speed 111 | 120 120 120 120 120 134 61 98 226 . Slowest Speed 350 | 120 120 120 120 120 280 117 350 240 . Overloaded Moves . | . . . . . . . . . . Propulsion Burnouts . | . . . . . . . . . . Robots Hopped 1 | . . . . . . 1 . . . Cave-ins Triggered . | . . . . . . . . . . Exploration Rate (%) 44 | 3 48 96 61 65 55 22 91 6 1 Regions Visited 9 Branch Regions 4 Pre-discovered Areas 2 | . . 1 . 1 . . . . . Known Exits Taken 1 | . . . . . . 1 . . . Unknown Exits Taken 7 | 1 1 1 1 1 1 . . 1 . Scrap Searched 2 | . . 1 . 1 . . . . . Spaces Dug 31 | . . . . . 18 5 8 . . Terrain Destroyed 65 | . . . . . 48 5 12 . . Melee 31 | . . . . . 18 5 8 . . Projectile 4 | . . . . . . . 4 . . AOE 30 | . . . . . 30 . . . . Terrain Rammed . | . . . . . . . . . . Walls Destroyed . | . . . . . . . . . . Machines Disabled . | . . . . . . . . . . Actions | -11 -10 -10 -10 -9 -8 -7 -7 -7 -7 --------- Run | Yrd Mat Min Exi Min Mat Fac Gar Fac Low Total 7666 | 86 309 589 221 356 2368 1363 2164 209 1 Wait 1716 | 22 13 9 2 48 881 417 317 7 . Move 5453 | 42 254 574 218 308 1341 891 1633 192 . Hop 1 | . . . . . . 1 . . . Pick Up 37 | 3 8 1 1 . 9 6 7 2 . Fast Attach 52 | . . . . . 19 11 17 5 . Attach 12 | . 1 . . . 4 2 5 . . Detach 5 | . . . . . 2 2 1 . . Swap 19 | 1 1 1 . . 5 4 6 1 . Drop 66 | 1 8 1 . . 25 16 13 2 . Fire 155 | 17 24 3 . . 51 . 59 . 1 Melee 107 | . . . . . 31 13 63 . . Ram . | . . . . . . . . . . Kick . | . . . . . . . . . . Crush . | . . . . . . . . . . Escape Stasis 43 | . . . . . . . 43 . . Rewire . | . . . . . . . . . . Trap . | . . . . . . . . . . Miscellaneous . | . . . . . . . . . . Route ------- -11/Scrapyard -10/Materials (discovered 2 exits: [*Mat] / [*Min]) -10/Mines (discovered 3 exits: [*Mat x2] / *Exi) -10/Exiles -9/Mines -8/Materials -7/Factory -7/Garrison (discovered 3 exits: [*Fac x3]) -7/Factory -7/Lower Caves History --------- Turn | Location | Event 1 | -11/Scrapyard | Discovered new exit (range 3) 130 | -11/Scrapyard | Entered Materials 258 | -10/Materials | Discovered new exit (range 16) 311 | -10/Materials | Build established: Mutant 488 | -10/Materials | Discovered new exit (range 14) 535 | -10/Materials | Entered Mines 581 | -10/Mines | Learned location of Zion (-6) 848 | -10/Mines | Discovered new exit (range 13) 882 | -10/Mines | Discovered new exit (range 9) 1024 | -10/Mines | Received a Mining Laser from a helpful Derelict 1212 | -10/Mines | Found DCF Scrap (13 items) 1233 | -10/Mines | Deemed a non-threat by the Exiles lab entrance 1234 | -10/Mines | Discovered new exit (range 5) 1245 | -10/Mines | Entered Exiles 1245 | -10/Exiles | Accompanied by 1 ally 1277 | -10/Exiles | Met 8R-AWN 1304 | -10/Exiles | Met EX-HEX 1339 | -10/Exiles | Met EX-BIN 1359 | -10/Exiles | Aligned with FarCom system 1361 | -10/Exiles | Given EX-Vault access code 1388 | -10/Exiles | Opened EX-Vault 1394 | -10/Exiles | Found Longsword +1 1419 | -10/Exiles | Warned to stay clear of 0b10 Research branches 1438 | -10/Exiles | Exiles lab attacked by MAIN.C 1494 | -10/Exiles | Discovered new exit (range 10) 1510 | -10/Exiles | Left Exiles lab with Longsword +1 1510 | -10/Exiles | Entered Mines 1511 | -9/Mines | Learned location of Storage (-9) 1632 | -9/Mines | Learned Materials garrison access intel 1808 | -9/Mines | Build established: Skirmisher 1845 | -9/Mines | Discovered new exit (range 6) 1928 | -9/Mines | Entered Materials 1928 | -8/Materials | Evolved 4 slots: Utility x4 3685 | -8/Materials | Build established: Assassin 4844 | -8/Materials | Discovered new exit (range 13) 4858 | -8/Materials | Entered Factory 4858 | -7/Factory | Evolved 2 slots: Propulsion x1, Utility x1 5700 | -7/Factory | Build established: Ninja 5888 | -7/Factory | Identified exit to Garrison 5888 | -7/Factory | Entered Garrison 6140 | -7/Garrison | Installed Relay Interface Framework 6162 | -7/Garrison | Triggered checkpoint 6162 | -7/Garrison | Garrison Relay disabled 6220 | -7/Garrison | Triggered checkpoint 6810 | -7/Garrison | Build established: Scavenger-Assassin 6834 | -7/Garrison | Triggered checkpoint 6882 | -7/Garrison | Triggered checkpoint 6979 | -7/Garrison | Discovered new exit (range 9) 7125 | -7/Garrison | Core integrity fell below 50% 7201 | -7/Garrison | Build established: Scavenger-Skirmisher 7279 | -7/Garrison | Discovered new exit (range 12) 7409 | -7/Garrison | Core integrity fell below 20% 7463 | -7/Garrison | Garrison Relay disabled 7477 | -7/Garrison | Garrison Relay disabled 7486 | -7/Garrison | Triggered checkpoint 7616 | -7/Garrison | Expanded RIF knowledge: Patrol Navigation 7715 | -7/Garrison | Build established: Scavenger-Assassin 7876 | -7/Garrison | Found embedded Infiltrators 8023 | -7/Garrison | Discovered new exit (range 11) 8136 | -7/Garrison | Triggered checkpoint 8149 | -7/Garrison | Entered Factory 8149 | -7/Factory | Accompanied by 3 allies 8452 | -7/Factory | Discovered new exit (range 17) 8472 | -7/Factory | Build established: Skirmisher 8602 | -7/Factory | Entered Lower Caves 8602 | -7/Lower Caves | Accompanied by 3 allies 8603 | -7/Lower Caves | Destroyed by 3D-PT4(x) with Heavy Laser Last Messages --------------- 08452_ EXIT=FOUND 08480_ P-60 Hacker fails to hack 2T-CNV(x). 08483_ P-60 Hacker shuts down. 08483_ P-60 Hacker destroyed. 08490_ &L8G5COIRIP2T24V5KCCE# 08498_ U-05 Engineer builds a Wall. 08510_ Dropped Imp. Datajack. 08510_ Acquired Remote Datajack. 08511_ Acquired 36 matter. 08518_ Acquired Gravmag System. 08523_ Acquired 10 matter. 08527_ Discarded Target Analyzer. 08529_ Acquired 1 matter. 08555_ Acquired Imp. Titanium Leg. 08566_ System corrupted: Matter fused (-7). 08593_ Dropped Remote Datajack. 08593_ Acquired Remote Datajack. LOCATION=UNKNOWN GOAL=ESCAPE 08603_ S-27 Virus knocked back. Map ----- +----------------------------------------------------+ | ?????????????????????????????????????????????????? | | ?????????????????????????????????????????????????? | | ?????????????????????????????????????????????????? | | ?????????????????????????????????????????????????? | | ?????????????????????????????????????????????????? | | ?????????????????????????????????????????????????? | | ?????????????????????????????????????????????????? | | ?????????????????????????????????????????????????? | | ?????????????????????????????????????????????????? | | ?????????????????????????????????????????????????? | | ?????????????????????????????????????????????????? | | ?????????????????????????????????????????????????? | | ?????????????????????????????????????????????????? | | ?????????????????????????????????????????????????? | | ?????????????????????????????????????????????????? | | ?????????????????????????????????????????????????? | | ?????????????????????????????????????????????????? | | ?????????????????????????????????????????????????? | | ???????????????????????????????????????? ????????? | | ?????????????????????????????????????# #????????? | | ?????????????????????????????????## ?????????? | | ???????????????????????##??????# ????????????? | | ??????????????????????## ##### ??????????????? | | ??????????????????????# ?????????????????? | | ???????????????????????# x #???????????????????? | | ???????????????????????#s@s#?????????????????????? | | ??????????????????????# x#?????????????????????? | | ????????????????????? % ###?????????????????????? | | ??????????????????? s #????????????????????????? | | ????????????????? Y ### ?????????????????????????? | | ??????????????? ???#??????????????????????????? | | ??????????????# ???????????????????????????????? | | ?????????????# ?????????????????????????????????? | | ???????????? ??????????????????????????????????? | | ??????????? ????????????????????????????????????? | | ?????????????????????????????????????????????????? | | ?????????????????????????????????????????????????? | | ?????????????????????????????????????????????????? | | ?????????????????????????????????????????????????? | | ?????????????????????????????????????????????????? | | ?????????????????????????????????????????????????? | | ?????????????????????????????????????????????????? | | ?????????????????????????????????????????????????? | | ?????????????????????????????????????????????????? | | ?????????????????????????????????????????????????? | | ?????????????????????????????????????????????????? | | ?????????????????????????????????????????????????? | | ?????????????????????????????????????????????????? | | ?????????????????????????????????????????????????? | | ?????????????????????????????????????????????????? | +----------------------------------------------------+ Best States ------------- Heat Dissipation 53 Energy Generation 18 Energy Capacity 310 Matter Stores 300 Matter Capacity 300 Sight Range 18 Robot Scan Range 15 Terrain Scan Density 210 Jamming Range 12 Additional Mass Support 9 Armor Coverage 225 Weapon Cycling 15 Melee Speed Boost 20 Evasion (%) 63 Targeting Accuracy 6 Melee Accuracy 6 Target Analysis 5 Recoil Reduction 8 Kinecelleration 30 Defensive Hacking 10 Relay Coupler Types 1 Relay Coupler Value 19 Item Schematics ----------------- Enh. Autogun | -8/Materials | Scanalyzed Imp. Datajack | -8/Materials | Scanalyzed Recoil Stabilizer | -8/Materials | Scanalyzed Actuator Array | -8/Materials | Scanalyzed Mni. Grenade Launcher | -8/Materials | Scanalyzed Adv. Terrain Scanner | -7/Factory | Hacked Robot Schematics ------------------ None Fabricated ------------ Nothing Alien Tech Used ----------------- None Achievements -------------- None Challenges ------------ None Game ------ Seed PlasmaFactoryTearclaws Manual? 0 Play Time 00:57:47 Cumulative 76.1 hours Start 2024.08.28 @ 05:02:20 End 2024.08.28 @ 19:04:46 Sessions 5 Manual Loads 0 Difficulty Rogue Special Mode None Game No. 125 Rogue 121 Adventurer 4 Explorer 0 Win Type - Total 0 Types 0/0/0/0/0/0/0/0/0 Lore% 35 Gallery% 46 Achievement% 35 Wizard Run 0 Options --------- Layout 2 ASCII 0 Keyboard 0 Movement Mouse Keybinds 0 Fullscreen 2 Font 24/Smallcaps Map View 50x44 Zoom Use 0% Tactical HUD 1 Map Filters NONE Filters NONE Steam 1 RUN: b5d90bf0-f452-46c3-8bd8-5897da7cc00d